bitfinex-derivatives/quotes_BTCF0:USTF0_20250329
["timestamp","ask_amount","ask_price","bid_price","bid_amount"]
[1743254611135,0.121697,82700.0,82699.0,0.1900984]
[1743254611640,0.00072,82700.0,82699.0,0.1900984]
[1743254612833,0.157097,82700.0,82699.0,0.1900984]
[1743254613032,0.191497,82700.0,82699.0,0.1900984]
[1743254617745,0.07052,82700.0,82699.0,0.1900984]
[1743254618441,0.00072,82700.0,82699.0,0.1900984]
[1743254618949,0.1086767,82702.0,82701.0,0.1209755]
[1743254619152,0.1093167,82702.0,82701.0,0.1216155]
[1743254623063,0.00064,82702.0,82701.0,0.1216155]
[1743254623263,0.0648,82707.0,82706.0,0.1209682]
[1743254623564,0.06544,82707.0,82706.0,0.4824082]
[1743254624163,0.06544,82707.0,82706.0,0.5511082]
[1743254624468,0.1864067,82707.0,82706.0,0.5511082]
[1743254625062,0.1864067,82707.0,82706.0,0.5165082]
[1743254630969,0.1864067,82707.0,82706.0,0.1557082]
[1743254631469,0.1864067,82707.0,82706.0,0.5165082]
[1743254635470,0.1864067,82707.0,82706.0,0.4824082]
[1743254636378,0.1864067,82707.0,82706.0,0.1216082]
[1743254644678,0.03334,82707.0,82706.0,0.1216082]
[1743254644878,0.29920897,82707.0,82706.0,0.1216082]
[1743254645378,0.29920897,82707.0,82706.0,0.1877082]
[1743254649468,0.1543067,82707.0,82706.0,0.1877082]
[1743254650273,0.1543067,82707.0,82706.0,0.5485082]
[1743254650877,0.1216067,82707.0,82706.0,0.5485082]
[1743254651870,0.1559067,82707.0,82706.0,0.1877082]
[1743254652075,0.1559067,82707.0,82706.0,0.5485082]
[1743254652579,0.00064,82707.0,82706.0,0.5485082]
[1743254653285,0.10945733,82707.0,82706.0,0.1877082]
[1743254653484,0.14235733,82707.0,82706.0,0.5485082]
[1743254654582,0.26332403,82707.0,82706.0,0.5485082]
[1743254655487,0.26332403,82707.0,82706.0,0.1877082]
[1743254655687,0.26332403,82707.0,82706.0,0.5485082]
[1743254657587,0.14235733,82707.0,82706.0,0.1877082]
[1743254657989,0.14235733,82707.0,82706.0,0.5485082]
[1743254659987,0.10945733,82707.0,82706.0,0.5485082]
[1743254660589,0.00018141,82708.0,82706.0,0.5485082]
[1743254660891,0.0353,82718.0,82711.0,0.1209609]
[1743254661092,0.0679,82718.0,82711.0,0.1217609]
[1743254661396,0.14570227,82712.0,82711.0,0.1217609]
[1743254661786,0.14570227,82712.0,82711.0,0.1881609]
[1743254664387,0.26666167,82712.0,82711.0,0.1217609]
[1743254664783,0.14570227,82712.0,82711.0,0.1217609]
[1743254664993,0.21280227,82712.0,82711.0,0.1217609]
[1743254665190,0.0679,82712.0,82711.0,0.1217609]
[1743254665392,0.1888594,82712.0,82711.0,0.1864609]
[1743254665897,0.1888594,82712.0,82711.0,0.1541609]
[1743254668187,0.0679,82712.0,82711.0,0.1541609]
[1743254668387,0.1888594,82712.0,82711.0,0.1541609]
[1743254670196,0.0679,82712.0,82711.0,0.1541609]
[1743254674404,0.0008,82712.0,82711.0,0.1541609]
[1743254674600,0.14490227,82717.0,82711.0,0.1541609]
[1743254674601,0.032,82716.0,82715.0,0.120955]
[1743254674807,0.14570227,82717.0,82716.0,0.1209536]
[1743254675001,0.14570227,82717.0,82716.0,0.13287968]
[1743254675307,0.14570227,82717.0,82716.0,0.1217536]
[1743254675610,0.17770227,82717.0,82716.0,0.1217536]
[1743254675807,0.24420227,82717.0,82716.0,0.1217536]
[1743254676003,0.36515437,82717.0,82716.0,0.1217536]
[1743254676408,0.24420227,82717.0,82716.0,0.1217536]
[1743254676711,0.0993,82717.0,82716.0,0.1217536]
[1743254677806,0.0656,82717.0,82716.0,0.1217536]
[1743254678115,0.0008,82717.0,82716.0,0.4825536]
[1743254678302,0.01040942,82717.0,82716.0,0.4825536]
[1743254679212,0.0008,82717.0,82716.0,0.4825536]
[1743254681613,0.0004,82724.0,82723.0,0.1209433]
[1743254681816,0.01105691,82724.0,82723.0,0.49522057]
[1743254682113,0.0099369,82724.0,82723.0,0.49522057]
[1743254682310,0.0004,82724.0,82723.0,0.49522057]
[1743254682509,0.00104,82724.0,82723.0,0.49522057]
[1743254683104,0.00104,82724.0,82723.0,0.49722057]
[1743254684205,0.0004,82724.0,82723.0,0.49722057]
[1743254685206,0.0004,82724.0,82723.0,0.49922057]
[1743254687406,0.14490227,82734.0,82733.0,0.1209287]
[1743254687608,0.14562227,82734.0,82733.0,0.1220487]
[1743254688014,0.14562227,82734.0,82733.0,0.13439143]
[1743254689821,0.00072,82734.0,82733.0,0.13439143]
[1743254691613,0.00072,82734.0,82733.0,0.16639143]
[1743254694419,0.00072,82734.0,82733.0,0.20069143]
[1743254694714,0.0662,82738.0,82737.0,0.1209229]
[1743254694916,0.06732001,82738.0,82737.0,0.4828429]
[1743254695715,0.06732001,82738.0,82737.0,0.5500429]
[1743254696128,0.06732001,82738.0,82737.0,0.5163429]
[1743254696416,0.18824141,82738.0,82737.0,0.5163429]
[1743254696621,0.06732001,82738.0,82737.0,0.5163429]
[1743254696823,0.07692584,82738.0,82737.0,0.5163429]
[1743254697912,0.07711469,82738.0,82737.0,0.5163429]
[1743254698823,0.19803609,82738.0,82737.0,0.5163429]
[1743254699010,0.07711469,82738.0,82737.0,0.5163429]
[1743254699621,0.19803609,82738.0,82737.0,0.5163429]
[1743254700214,0.19803609,82738.0,82737.0,0.4828429]
[1743254701510,0.19811878,82738.0,82737.0,0.36192]
[1743254701917,0.19811878,82738.0,82737.0,0.4828429]
[1743254702715,0.19811878,82738.0,82737.0,0.1220429]
[1743254703616,0.19809235,82738.0,82737.0,0.1220429]
[1743254709132,0.19809235,82738.0,82737.0,0.1893429]
[1743254709331,0.01097095,82738.0,82737.0,0.1893429]
[1743254709731,0.01097095,82738.0,82737.0,0.2011865]
[1743254709928,0.01097095,82738.0,82737.0,0.1893429]
[1743254710329,0.04287095,82738.0,82737.0,0.1893429]
[1743254710833,0.07437095,82738.0,82737.0,0.1893429]
[1743254711732,0.07445388,82738.0,82737.0,0.1893429]
[1743254712636,0.01105388,82738.0,82737.0,0.1893429]
[1743254713736,0.01094959,82738.0,82737.0,0.1893429]
[1743254714137,0.07504959,82738.0,82737.0,0.1893429]
[1743254715233,0.01094959,82738.0,82737.0,0.1893429]
[1743254717430,0.00112001,82738.0,82737.0,0.1893429]
[1743254720537,0.1504,82740.0,82739.0,0.12092]
[1743254720725,0.1504,82740.0,82739.0,0.4828]
[1743254722338,0.1504,82740.0,82739.0,0.122]
[1743254722537,0.1504,82740.0,82739.0,0.4828]
[1743254726038,0.14490227,82751.0,82750.0,0.1209039]
[1743254726335,0.14594228,82751.0,82750.0,0.4827439]
[1743254726542,0.15549429,82751.0,82750.0,0.4827439]
[1743254726940,0.15549429,82751.0,82750.0,0.5456439]
[1743254727135,0.14594228,82751.0,82750.0,0.55772616]
[1743254728338,0.0334,82756.0,82755.0,0.1208966]
[1743254728541,0.07616452,82756.0,82755.0,0.1223366]
[1743254729041,0.06654,82756.0,82755.0,0.1223366]
[1743254729236,0.06654,82756.0,82755.0,0.1862366]
[1743254730244,0.18098646,82766.0,82760.0,0.0604444]
[1743254730445,0.0323,82763.0,82762.0,0.0604431]
[1743254730635,0.04184434,82763.0,82762.0,0.0940431]
[1743254730836,0.04184434,82763.0,82762.0,0.1261431]
[1743254731139,0.0323,82763.0,82762.0,0.1261431]
[1743254732042,0.18098646,82766.0,82763.0,0.0604418]
[1743254732338,0.25366951,82781.0,82770.0,0.1208747]
[1743254732542,0.0656,82780.0,82779.0,0.1208615]
[1743254732841,0.0656,82780.0,82779.0,0.4834215]
[1743254733437,0.0656,82780.0,82779.0,0.5477215]
[1743254734835,0.0656,82780.0,82779.0,0.5162215]
[1743254735041,0.0656,82780.0,82779.0,0.1554215]
[1743254735547,0.0656,82780.0,82779.0,0.1226215]
[1743254735752,0.1864601,82780.0,82779.0,0.1226215]
[1743254736049,0.1864601,82780.0,82779.0,0.00176]
[1743254736249,0.1864601,82780.0,82779.0,0.1208615]
[1743254736447,0.1864601,82780.0,82779.0,0.1227015]
[1743254737650,0.1864601,82780.0,82779.0,0.1237015]
[1743254738034,0.1864601,82780.0,82779.0,0.1227015]
[1743254740450,0.0656,82780.0,82779.0,0.1227015]
[1743254741347,0.0656,82780.0,82779.0,0.1895015]
[1743254742052,0.3729684,82784.0,82782.0,0.1208571]
[1743254742251,0.393,82784.0,82783.0,0.1876557]
[1743254742442,0.393,82784.0,82783.0,0.1894157]
[1743254743556,0.0004,82788.0,82787.0,0.1208498]
[1743254743751,0.0004,82788.0,82787.0,0.1226098]
[1743254743948,0.0004,82788.0,82787.0,0.2445298]
[1743254744146,0.0004,82788.0,82787.0,0.2444898]
[1743254744455,0.0004,82788.0,82787.0,0.3124898]
[1743254744657,0.0004,82788.0,82787.0,0.1906098]
[1743254745150,0.0004,82788.0,82787.0,0.1564098]
[1743254746461,0.0004,82788.0,82787.0,0.1226098]
[1743254746658,0.1212484,82788.0,82787.0,0.1226098]
[1743254746855,0.13077023,82788.0,82787.0,0.1226098]
[1743254747357,0.0004,82788.0,82787.0,0.1226098]
[1743254748150,0.0004,82788.0,82787.0,0.1881098]
[1743254752654,0.1212484,82788.0,82787.0,0.1881098]
[1743254753252,0.0004,82788.0,82787.0,0.5489098]
[1743254758662,0.0004,82788.0,82787.0,0.6702298]
[1743254761063,0.0004,82788.0,82787.0,0.6700698]
[1743254761261,0.0004,82788.0,82787.0,0.6700298]
[1743254762067,0.0661,82788.0,82787.0,0.6700298]
[1743254762280,0.1869484,82788.0,82787.0,0.6700298]
[1743254762470,0.0661,82788.0,82787.0,0.6700298]
[1743254762673,0.1869484,82788.0,82787.0,0.6700298]
[1743254762871,0.1869484,82788.0,82787.0,0.5489098]
[1743254763077,0.1869484,82788.0,82787.0,0.00176]
[1743254763671,0.1208542,82784.0,82783.0,0.21537912]
[1743254763876,0.1208542,82784.0,82783.0,0.21713912]
[1743254764183,0.1208542,82784.0,82777.0,0.120864]
[1743254764184,0.1208703,82773.0,82772.0,0.35928702]
[1743254764382,0.49186337,82773.0,82772.0,0.36056702]
[1743254764568,0.61366337,82773.0,82772.0,0.48143872]
[1743254765780,0.61366337,82773.0,82772.0,0.00328]
[1743254765981,0.61366337,82773.0,82772.0,0.1241517]
[1743254766387,0.26489108,82773.0,82772.0,0.1241517]
[1743254766581,0.26489108,82773.0,82772.0,0.1564517]
[1743254766878,0.14309108,82773.0,82772.0,0.1574517]
[1743254767283,0.14309108,82773.0,82772.0,0.1900517]
[1743254769583,0.14321331,82773.0,82772.0,0.1900517]
[1743254770977,0.0103153,82773.0,82772.0,0.1900517]
[1743254771888,0.00064,82773.0,82772.0,0.1900517]
[1743254772985,0.0974,82775.0,82774.0,0.1208688]
[1743254773180,0.01104637,82775.0,82774.0,0.1221088]
[1743254773380,0.0604271,82784.0,82783.0,0.0604272]
[1743254773582,0.04299216,82784.0,82783.0,0.1260272]
[1743254773782,0.04299216,82784.0,82783.0,0.1273072]
[1743254773976,0.04231216,82784.0,82783.0,0.1273072]
[1743254774881,0.04359216,82784.0,82783.0,0.1273072]
[1743254775087,0.00128,82784.0,82783.0,0.1273072]
[1743254775387,0.0004,82788.0,82787.0,0.1208498]
[1743254775583,0.01165639,82788.0,82787.0,0.1220898]
[1743254776184,0.01165639,82788.0,82787.0,0.1543898]
[1743254776780,0.01037639,82788.0,82787.0,0.1543898]
[1743254777178,0.0116164,82788.0,82787.0,0.1543898]
[1743254777574,0.13122479,82788.0,82787.0,0.1543898]
[1743254777774,0.1324648,82788.0,82787.0,0.1543898]
[1743254777996,0.1651648,82788.0,82787.0,0.1543898]
[1743254778284,0.0443164,82788.0,82787.0,0.1543898]
[1743254778489,0.04307639,82788.0,82787.0,0.1543898]
[1743254778988,0.16392479,82788.0,82787.0,0.1543898]
[1743254779181,0.1651648,82788.0,82787.0,0.1543898]
[1743254780690,0.1651648,82788.0,82787.0,0.00124]
[1743254781078,0.1651648,82788.0,82787.0,0.1220898]
[1743254781079,0.18130332,82788.0,82787.0,0.1220898]
[1743254781280,0.18130332,82788.0,82787.0,0.00124]
[1743254781682,0.1208601,82780.0,82779.0,0.1208607]
[1743254781880,0.01145404,82780.0,82779.0,0.1221407]
[1743254782081,0.01021403,82780.0,82779.0,0.1221407]
[1743254782285,0.04341403,82780.0,82779.0,0.1221407]
[1743254782490,0.04405403,82780.0,82779.0,0.1221407]
[1743254782690,0.07495403,82780.0,82779.0,0.1221407]
[1743254783688,0.01077619,82780.0,82779.0,0.1221407]
[1743254783888,0.01013619,82780.0,82779.0,0.1221407]
[1743254784192,0.0113762,82780.0,82779.0,0.1221407]
[1743254784494,0.0113762,82780.0,82779.0,0.1563407]
[1743254784991,0.1322363,82780.0,82779.0,0.1563407]
[1743254785187,0.1322363,82780.0,82779.0,0.2777007]
[1743254785188,0.00124001,82780.0,82779.0,0.2777007]
[1743254785391,0.1208522,82786.0,82785.0,0.1208528]
[1743254785682,0.1208522,82786.0,82785.0,0.1220928]
[1743254785683,0.12209221,82786.0,82785.0,0.1220928]
[1743254785891,0.14823649,82786.0,82785.0,0.1220928]
[1743254786794,0.0112955,82786.0,82785.0,0.1220928]
[1743254786997,0.01005549,82786.0,82785.0,0.1220928]
[1743254787698,0.0004,82788.0,82787.0,0.1208498]
[1743254787891,0.0004,82788.0,82787.0,0.1220898]
[1743254787892,0.01178031,82788.0,82787.0,0.1220898]
[1743254788292,0.10834893,82791.0,82790.0,0.1208455]
[1743254788591,0.21648607,82805.0,82799.0,0.1208323]
[1743254788793,0.21648607,82805.0,82799.0,0.1224323]
[1743254789102,0.3608,82819.0,82818.0,0.1208046]
[1743254789282,0.4816031,82819.0,82818.0,0.1224046]
[1743254789594,0.3608,82819.0,82818.0,0.1224046]
[1743254789794,0.40932503,82829.0,82826.0,0.0603959]
[1743254789993,0.40932503,82829.0,82828.0,0.12079]
[1743254790192,0.40932503,82829.0,82828.0,0.24387]
[1743254790496,0.40932503,82829.0,82828.0,0.0016]
[1743254790690,0.47472503,82829.0,82828.0,0.0016]
[1743254790896,0.44042503,82829.0,82828.0,0.0016]
[1743254791497,0.47472503,82829.0,82828.0,0.0016]
[1743254791794,0.1861913,82829.0,82828.0,0.0016]
[1743254791992,0.1518913,82829.0,82828.0,0.0016]
[1743254792592,0.1861913,82829.0,82828.0,0.12239]
[1743254793094,0.1207913,82829.0,82828.0,0.12239]
[1743254793502,0.1858913,82829.0,82828.0,0.15629]
[1743254794500,0.1207913,82829.0,82828.0,0.19019]
[1743254794892,0.1543913,82829.0,82828.0,0.19019]
[1743254795199,0.1858913,82829.0,82828.0,0.19019]
[1743254795399,0.2181913,82829.0,82828.0,0.19019]
[1743254795799,0.1207913,82829.0,82828.0,0.19019]
[1743254795998,0.49357966,82833.0,82832.0,0.1207842]
[1743254796192,0.49357966,82833.0,82832.0,0.1223842]
[1743254796900,0.53361,82833.0,82832.0,0.1223842]
[1743254797302,0.50101,82833.0,82832.0,0.1223842]
[1743254798602,0.56137966,82833.0,82832.0,0.0016]
[1743254798810,0.56137966,82833.0,82814.0,0.032]
[1743254798811,0.1208017,82820.0,82810.0,0.06058889]
[1743254798990,0.48272171,82820.0,82819.0,0.0615211]
[1743254799297,0.36192001,82820.0,82819.0,0.0615211]
[1743254800102,0.48272171,82820.0,82819.0,0.0615211]
[1743254800302,0.48272171,82820.0,82819.0,0.1275211]
[1743254800706,0.12192171,82820.0,82819.0,0.1275211]
[1743254800896,0.00112001,82820.0,82819.0,0.1285211]
[1743254801096,0.12192171,82820.0,82819.0,0.1285211]
[1743254801304,0.12192171,82820.0,82819.0,0.06812]
[1743254803106,0.13159472,82820.0,82819.0,0.06812]
[1743254803309,0.16299472,82820.0,82819.0,0.06812]
[1743254806195,0.19409472,82820.0,82819.0,0.06812]
[1743254806910,0.19409472,82820.0,82819.0,0.1889231]
[1743254808001,0.1940478,82820.0,82819.0,0.1889231]
[1743254808306,0.1940478,82820.0,82819.0,0.06812]
[1743254808611,0.18442171,82820.0,82819.0,0.06812]
[1743254809813,0.19411623,82820.0,82819.0,0.00212]
[1743254810207,0.19411706,82820.0,82819.0,0.00212]
[1743254810514,0.18442171,82820.0,82819.0,0.00212]
[1743254810806,0.19410949,82820.0,82819.0,0.00212]
[1743254812009,0.1208104,82814.0,82801.0,0.12112]
[1743254812197,0.1208148,82811.0,82802.0,0.0646]
[1743254812400,0.13114258,82811.0,82802.0,0.0646]
[1743254812607,0.1208265,82803.0,82802.0,0.0646]
[1743254812803,0.1208265,82803.0,82802.0,0.0008]
[1743254812804,0.13115428,82803.0,82802.0,0.0008]
[1743254813203,0.19435428,82803.0,82802.0,0.0008]
[1743254814001,0.19135428,82803.0,82802.0,0.0008]
[1743254814411,0.20320385,82803.0,82802.0,0.0008]
[1743254814604,0.20320385,82803.0,82802.0,0.0098]
[1743254815710,0.20320385,82803.0,82802.0,0.0408]
[1743254816109,0.20331628,82803.0,82802.0,0.0408]
[1743254816413,0.20331628,82803.0,82802.0,0.161628]
[1743254818322,0.13478279,82803.0,82802.0,0.161628]
[1743254818911,0.13473724,82803.0,82802.0,0.0408]
[1743254819124,0.13473724,82803.0,82802.0,0.161628]
[1743254819917,0.13473724,82803.0,82802.0,0.194128]
[1743254822018,0.13464048,82803.0,82802.0,0.194128]
[1743254823310,0.13464048,82803.0,82802.0,0.0733]
[1743254823909,0.13464048,82803.0,82802.0,0.0098]
[1743254824110,0.13464048,82803.0,82802.0,0.009]
[1743254824605,0.13464048,82803.0,82802.0,0.00988]
[1743254825109,0.54714048,82803.0,82802.0,0.009]
[1743254825428,0.1208367,82796.0,82795.0,0.00048312]
[1743254825620,0.9045946,82796.0,82795.0,0.00128312]
[1743254825811,0.9045946,82796.0,82795.0,0.06438312]
[1743254826008,0.90467776,82796.0,82795.0,0.06438312]
[1743254826211,0.98485924,82796.0,82795.0,0.06438312]
[1743254826419,0.62405924,82796.0,82795.0,0.06438312]
[1743254826623,0.62405924,82796.0,82795.0,0.06518312]
[1743254826812,0.62505924,82796.0,82795.0,0.07618312]
[1743254827318,0.62505924,82796.0,82795.0,0.07038312]
[1743254827524,0.62405924,82796.0,82795.0,0.06538312]
[1743254828015,0.62407335,82796.0,82795.0,0.06618312]
[1743254828221,0.62407335,82796.0,82795.0,0.06538312]
[1743254828908,0.62407335,82796.0,82795.0,0.06618312]
[1743254829110,0.62407335,82796.0,82795.0,0.06538312]
[1743254829619,0.62407335,82796.0,82795.0,0.06622312]
[1743254831414,0.62407335,82796.0,82795.0,0.06538312]
[1743254832520,0.55140795,82796.0,82795.0,0.06538312]
[1743254832718,0.54389187,82796.0,82795.0,0.06538312]
[1743254832931,0.54389187,82796.0,82795.0,0.06618312]
[1743254833119,0.54389187,82796.0,82795.0,0.06538312]
[1743254833319,0.60769187,82796.0,82795.0,0.06618312]
[1743254833820,0.61653203,82796.0,82795.0,0.06538312]
[1743254834214,0.61653203,82796.0,82795.0,0.03238312]
[1743254834413,0.62408928,82796.0,82795.0,0.00148312]
[1743254836120,0.1208382,82795.0,82790.0,0.0312]
[1743254836322,0.1208382,82795.0,82773.0,0.0604345]
[1743254836323,0.1208571,82782.0,82777.0,0.4816635]
[1743254836515,0.1208601,82780.0,82779.0,0.00132321]
[1743254836710,0.13141527,82780.0,82779.0,0.00132321]
[1743254836916,0.19501527,82780.0,82779.0,0.00132321]
[1743254837119,0.19501527,82780.0,82779.0,0.06648321]
[1743254837317,0.19401527,82780.0,82779.0,0.00048321]
[1743254837518,0.20164603,82780.0,82779.0,0.00048321]
[1743254838116,0.20164603,82780.0,82779.0,0.00548321]
[1743254838323,0.20164603,82780.0,82779.0,0.03708321]
[1743254839118,0.20164603,82780.0,82779.0,0.04108321]
[1743254839421,0.13904603,82780.0,82779.0,0.16194471]
[1743254839627,0.01818593,82780.0,82779.0,0.16278471]
[1743254839828,0.01918593,82780.0,82779.0,0.15878471]
[1743254840021,0.1399169,82780.0,82779.0,0.19278471]
[1743254840326,0.1399169,82780.0,82779.0,0.18778471]
[1743254841026,0.13228614,82780.0,82779.0,0.18778471]
[1743254842023,0.01142604,82780.0,82779.0,0.18778471]
[1743254842220,0.0018,82780.0,82779.0,0.18778471]
[1743254842826,0.01148923,82780.0,82779.0,0.18778471]
[1743254844243,0.01148096,82780.0,82779.0,0.18778471]
[1743254844526,0.0018,82780.0,82779.0,0.18778471]
[1743254845725,0.01150924,82780.0,82779.0,0.18778471]
[1743254846231,0.13236948,82780.0,82779.0,0.54858471]
[1743254847128,0.1226601,82780.0,82779.0,0.54858471]
[1743254847328,0.13235488,82780.0,82779.0,0.54858471]
[1743254847719,0.1226601,82780.0,82779.0,0.54858471]
[1743254847932,0.13240408,82780.0,82779.0,0.54858471]
[1743254848119,0.1226601,82780.0,82779.0,0.54858471]
[1743254849326,0.0018,82780.0,82779.0,0.54858471]
[1743254849722,0.001,82780.0,82779.0,0.54858471]
[1743254849922,0.13162356,82780.0,82779.0,0.54858471]
[1743254850133,0.13246356,82780.0,82779.0,0.54858471]
[1743254850325,0.13246411,82780.0,82779.0,0.54858471]
[1743254851533,0.01160401,82780.0,82779.0,0.54858471]
[1743254851726,0.01086321,82780.0,82779.0,0.54858471]
[1743254852327,0.13172331,82780.0,82779.0,0.54858471]
[1743254852928,0.13252331,82780.0,82779.0,0.54858471]
[1743254854536,0.14443717,82780.0,82779.0,0.54858471]
[1743254854729,0.16055983,82780.0,82779.0,0.54858471]
[1743254855232,0.02786541,82780.0,82779.0,0.54858471]
[1743254855442,0.02706541,82780.0,82779.0,0.54858471]
[1743254855624,0.03471466,82780.0,82779.0,0.54858471]
[1743254855824,0.018592,82780.0,82779.0,0.54858471]
[1743254856020,0.15134698,82780.0,82779.0,0.54858471]
[1743254856532,0.13945655,82780.0,82779.0,0.54858471]
[1743254857632,0.14029655,82780.0,82779.0,0.54858471]
[1743254858429,0.01937394,82780.0,82779.0,0.54858471]
[1743254858827,0.01853394,82780.0,82779.0,0.54858471]
[1743254859028,0.01933394,82780.0,82779.0,0.54858471]
[1743254859239,0.14019404,82780.0,82779.0,0.54858471]
[1743254860631,0.14019404,82780.0,82779.0,0.42772321]
[1743254861026,0.20499404,82780.0,82779.0,0.03532321]
[1743254861232,0.20499404,82780.0,82779.0,0.00048321]
[1743254861435,0.20499404,82780.0,82779.0,0.00128321]
[1743254861630,0.20499404,82780.0,82779.0,0.00048321]
[1743254862641,0.21721397,82780.0,82779.0,0.00048321]
[1743254862827,0.23337809,82780.0,82779.0,0.00048321]
[1743254864226,0.1208717,82772.0,82768.0,0.0669]
[1743254864428,0.14769664,82772.0,82768.0,0.0669]
[1743254864728,0.14769664,82772.0,82771.0,0.00102119]
[1743254864933,0.14769664,82772.0,82771.0,0.00018119]
[1743254865230,0.22084589,82772.0,82771.0,0.00018119]
[1743254865429,0.22484589,82772.0,82771.0,0.00102119]
[1743254865635,0.22484589,82772.0,82771.0,0.00018119]
[1743254865836,0.20868177,82772.0,82771.0,0.00018119]
[1743254866131,0.21068177,82772.0,82771.0,0.00018119]
[1743254866527,0.21068177,82772.0,82771.0,0.00098119]
[1743254867532,0.21068177,82772.0,82771.0,0.06498119]
[1743254868438,0.21068177,82772.0,82771.0,0.06418119]
[1743254868929,0.20968177,82772.0,82771.0,0.06506119]
[1743254869129,0.20768177,82772.0,82771.0,0.06506119]
[1743254869435,0.20968177,82772.0,82771.0,0.06506119]
[1743254870239,0.62218177,82772.0,82771.0,0.06506119]
[1743254870538,0.61216095,82772.0,82771.0,0.06418119]
[1743254870837,0.50117824,82772.0,82771.0,0.18505439]
[1743254871138,0.50117824,82772.0,82771.0,0.18585439]
[1743254871725,0.50217824,82772.0,82771.0,0.18585439]
[1743254871930,0.62304994,82772.0,82771.0,0.18585439]
[1743254872841,0.62204994,82772.0,82771.0,0.18585439]
[1743254873238,0.62104994,82772.0,82771.0,0.18585439]
[1743254873537,0.62004994,82772.0,82771.0,0.18585439]
[1743254873738,0.55454994,82772.0,82771.0,0.18585439]
[1743254874038,0.54690069,82772.0,82771.0,0.18585439]
[1743254874240,0.54490069,82772.0,82771.0,0.18585439]
[1743254874441,0.54690069,82772.0,82771.0,0.18585439]
[1743254874638,0.42602899,82772.0,82771.0,0.18585439]
[1743254875337,0.54690069,82772.0,82771.0,0.18585439]
[1743254875936,0.13440069,82772.0,82771.0,0.18585439]
[1743254877343,0.14202017,82772.0,82771.0,0.18585439]
[1743254877838,0.14102017,82772.0,82771.0,0.18585439]
[1743254878039,0.14002017,82772.0,82771.0,0.18585439]
[1743254878241,0.20532017,82772.0,82771.0,0.18585439]
[1743254878745,0.20530347,82772.0,82771.0,0.18585439]
[1743254879544,0.17250347,82772.0,82771.0,0.18585439]
[1743254880643,0.16263118,82772.0,82771.0,0.18585439]
[1743254880833,0.17251696,82772.0,82771.0,0.18585439]
[1743254882043,0.17251696,82772.0,82771.0,0.06498119]
[1743254882346,0.1208834,82764.0,82763.0,0.0004833]
[1743254882644,0.13838866,82764.0,82763.0,0.0011633]
[1743254882846,0.15573475,82764.0,82763.0,0.0011633]
[1743254883043,0.19013475,82764.0,82763.0,0.0011633]
[1743254883442,0.20281655,82764.0,82763.0,0.0011633]
[1743254883741,0.23731655,82764.0,82763.0,0.0011633]
[1743254884449,0.23831655,82764.0,82763.0,0.0011633]
[1743254884644,0.23931655,82764.0,82763.0,0.0011633]
[1743254884849,0.23931655,82764.0,82763.0,0.0004833]
[1743254886747,0.23831655,82764.0,82763.0,0.0004833]
[1743254887042,0.24431655,82764.0,82763.0,0.0004833]
[1743254888047,0.60511655,82764.0,82763.0,0.0004833]
[1743254888352,0.1208893,82760.0,82759.0,0.0357]
[1743254888555,0.14809634,82760.0,82759.0,0.0357]
[1743254888943,0.16839762,82760.0,82759.0,0.0357]
[1743254889143,0.23649762,82760.0,82759.0,0.0357]
[1743254889542,0.23849762,82760.0,82759.0,0.0357]
[1743254889743,0.1208907,82759.0,82758.0,0.0324]
[1743254889944,0.14805774,82759.0,82758.0,0.0324]
[1743254890143,0.23645902,82759.0,82758.0,0.0324]
[1743254890741,0.24863435,82759.0,82758.0,0.0324]
[1743254890954,0.23235925,82759.0,82758.0,0.0324]
[1743254891155,0.23735925,82759.0,82758.0,0.0324]
[1743254891546,0.23724566,82759.0,82758.0,0.0324]
[1743254892049,0.25336226,82759.0,82758.0,0.0324]
[1743254892455,0.18526226,82759.0,82758.0,0.0324]
[1743254892658,0.17258046,82759.0,82758.0,0.0324]
[1743254893062,0.15646386,82759.0,82758.0,0.0324]
[1743254896073,0.1726377,82759.0,82758.0,0.0324]
[1743254896572,0.18526379,82759.0,82758.0,0.0324]
[1743254897071,0.1208937,82757.0,82756.0,0.0347]
[1743254897369,0.14780589,82757.0,82756.0,0.0347]
[1743254897671,0.15542537,82757.0,82756.0,0.0347]
[1743254897873,0.22522537,82757.0,82756.0,0.0347]
[1743254898374,0.22722537,82757.0,82756.0,0.0347]
[1743254898878,0.1208951,82756.0,82755.0,0.00018119]
[1743254899071,0.18272729,82756.0,82755.0,0.00094119]
[1743254899371,0.26042677,82756.0,82755.0,0.00094119]
[1743254899573,0.1209068,82748.0,82747.0,0.0004834]
[1743254899769,0.49272516,82748.0,82747.0,0.0718234]
[1743254899970,0.61344516,82748.0,82747.0,0.0011234]
[1743254900278,0.61344516,82748.0,82726.0,0.48951171]
[1743254900279,0.1209229,82737.0,82736.0,1e-08]
[1743254900574,0.1209302,82732.0,82731.0,0.36049051]
[1743254900776,0.13126855,82732.0,82731.0,0.36181051]
[1743254900967,0.13126855,82732.0,82731.0,0.36109051]
[1743254901167,0.15149637,82732.0,82731.0,0.36109051]
[1743254901362,0.22239637,82732.0,82731.0,0.36109051]
[1743254901570,0.23138639,82732.0,82731.0,0.36109051]
[1743254902374,0.24367572,82732.0,82731.0,0.36109051]
[1743254903071,0.24567572,82732.0,82731.0,0.36109051]
[1743254903369,0.24867572,82732.0,82731.0,0.36109051]
[1743254903570,0.23606738,82732.0,82731.0,0.36109051]
[1743254905374,0.64856738,82732.0,82731.0,0.36109051]
[1743254905571,0.64856738,82732.0,82731.0,0.00180349]
[1743254905775,0.64856738,82732.0,82731.0,0.00048349]
[1743254906373,1.00936738,82732.0,82731.0,0.00048349]
[1743254906573,1.00931478,82732.0,82731.0,0.00048349]
[1743254908679,1.00932075,82732.0,82731.0,0.00048349]
[1743254910277,1.02544858,82732.0,82731.0,0.00048349]
[1743254911169,1.00932075,82732.0,82731.0,0.00048349]
[1743254911366,1.02192147,82732.0,82731.0,0.00048349]
[1743254912082,0.1209346,82729.0,82728.0,0.0001813]
[1743254912271,0.1209536,82716.0,82711.0,0.1209602]
[1743254912470,0.1209536,82716.0,82715.0,0.00112359]
[1743254912471,0.1222336,82716.0,82715.0,0.00112359]
[1743254912670,0.13223648,82716.0,82715.0,0.00112359]
[1743254913275,0.20213648,82716.0,82715.0,0.00048359]
[1743254913478,0.20213648,82716.0,82715.0,0.00112359]
[1743254913775,0.20213648,82716.0,82715.0,0.00248359]
[1743254913964,0.20213648,82716.0,82715.0,0.00312359]
[1743254914170,0.1921336,82716.0,82715.0,0.12407859]
[1743254914782,0.1921336,82716.0,82715.0,0.00312359]
[1743254915481,0.1921336,82716.0,82715.0,0.07312359]
[1743254917368,0.1921336,82716.0,82715.0,0.07248359]
[1743254917869,0.1921336,82716.0,82715.0,0.07316359]
[1743254918078,0.20204488,82716.0,82715.0,0.03708359]
[1743254918285,0.1209624,82710.0,82709.0,0.0709]